fUSD/lending_fUSD_20251122
["ID","MTS","AMOUNT","RATE_DAILY","PERIOD"]
[394662626,1763837444230,-258.2,0.00015014,2]
[394662627,1763837444326,-0.11494717,0.00015014,2]
[394662629,1763837445952,-144205.85738384,0.00015014,2]
[394662630,1763837445965,-1120.4,0.00015014,2]
[394662631,1763837445976,-388.61022709,0.00015014,2]
[394662632,1763837445989,-2185.69647785,0.00015014,2]
[394662654,1763837447415,-280.87,0.00015014,2]
[394662655,1763837460559,6351.60084879,0.0001483,2]
[394662656,1763837460583,3648.39915121,0.0001483,2]
[394662658,1763837477586,6351.61084879,0.0001483,2]
[394662659,1763837477611,3648.38915121,0.0001483,2]
[394662660,1763837497688,628.16,0.0001483,2]
[394662661,1763837533996,200.0,0.00014581,2]
[394662667,1763837563777,623.62,0.0001449,2]
[394662668,1763837564388,2740.0,0.000146,5]
[394662713,1763837799969,2751.0,0.00014594,2]
[394662715,1763837910704,1000.0,0.0001469,2]
[394662721,1763837994960,1148.84084879,0.00014554,2]
[394662722,1763837994982,10000.01,0.00014554,2]
[394662723,1763837995003,10000.01,0.00014554,2]
[394662724,1763837995024,10000.01,0.00014554,2]
[394662725,1763837995045,10000.01,0.00014554,2]
[394662726,1763837995068,10000.01,0.00014554,2]
[394662727,1763837995090,10000.01,0.00014554,2]
[394662728,1763837995111,10000.01,0.00014554,2]
[394662729,1763837995137,10000.01,0.00014554,2]
[394662730,1763837995158,10000.01,0.00014554,2]
[394662731,1763837995185,41397.04915121,0.00014554,2]
[394662732,1763838023465,200.0,0.00014597,2]
[394662746,1763838093783,797.027,0.00014616,2]
[394662747,1763838093822,156.635,0.00014616,2]
[394662748,1763838095298,200.0,0.00014543,2]
[394662749,1763838105542,172.8710487,0.00014814,2]
[394662764,1763838143636,8473.4769513,0.00014814,2]
[394662765,1763838143663,4944.36091581,0.00014814,2]
[394662768,1763838149117,1077.84825782,0.00014814,2]
[394662778,1763838181872,490.13767149,0.00012893,2]
[394662807,1763838254062,152.19,0.00014454,2]
[394662830,1763838307921,150.0,0.00013636,2]
[394662831,1763838307960,150.0,0.00013888,2]
[394662832,1763838308025,150.0,0.00014141,2]
[394662833,1763838308103,150.0,0.00014393,2]
[394662834,1763838308200,150.0,0.00014646,2]
[394662835,1763838308856,150.0,0.00013636,2]
[394662836,1763838308954,150.0,0.00014242,2]
[394662837,1763838309044,150.0,0.00014545,2]
[394662838,1763838309282,150.0,0.00013636,2]
[394662839,1763838310648,150.0,0.00013939,2]
[394662842,1763838315257,150.0,0.00013636,2]
[394662843,1763838315308,150.0,0.00013773,2]
[394662844,1763838315380,150.0,0.00013911,2]
[394662845,1763838315445,150.0,0.00014049,2]
[394662846,1763838315519,150.0,0.00014187,2]
[394662847,1763838315589,150.0,0.00014324,2]
[394662848,1763838315674,150.0,0.00014462,2]
[394662849,1763838315728,150.0,0.000146,2]
[394662850,1763838315801,150.0,0.00014737,2]
[394662851,1763838316133,150.0,0.00013636,2]
[394662852,1763838316204,150.0,0.00013888,2]
[394662853,1763838316277,150.0,0.00014141,2]
[394662854,1763838316341,35.47315488,0.00014393,2]
[394662855,1763838316362,114.52684512,0.00014393,2]
[394662856,1763838316406,150.0,0.00014646,2]
[394662858,1763838316918,150.0,0.00013636,2]
[394662859,1763838319559,150.0,0.00013636,2]
[394662860,1763838319629,150.0,0.00014014,2]
[394662861,1763838319695,150.0,0.00014393,2]
[394662862,1763838319746,150.0,0.00014772,2]
[394662864,1763838325528,150.0,0.00013636,2]
[394662865,1763838325699,150.00000001,0.00013636,2]
[394662866,1763838325751,150.0,0.00013636,2]
[394662869,1763838328812,150.0,0.00013636,2]
[394662872,1763838332864,150.0,0.00013636,2]
[394662873,1763838332921,150.0,0.00014014,2]
[394662874,1763838332994,150.0,0.00014393,2]
[394662875,1763838333066,150.0,0.00014772,2]
[394662876,1763838333197,150.0,0.00013636,2]
[394662877,1763838333351,150.0,0.00014393,2]
[394662897,1763838365400,1431.19,0.00014366,2]
[394662907,1763838428411,4843.08851615,0.00014814,2]
[394662908,1763838429490,943.11722561,0.00014814,2]
[394662909,1763838440820,155.58394383,0.00014814,2]
[394662910,1763838495890,504.5999,0.00014814,2]
[394662911,1763838529896,3553.62041441,0.00014814,2]
[394662912,1763838529918,8522.43366598,0.00014814,2]
[394662924,1763838631909,-150.0,0.00014848,2]
[394662925,1763838631918,-250.0,0.00014854,2]
[394662926,1763838631928,-270.03103,0.0001486,2]
[394662927,1763838631938,-452.5898,0.0001486,2]
[394662928,1763838631947,-150.0,0.00014875,2]
[394662929,1763838631956,-386.54378807,0.00014878,2]
[394662930,1763838631966,-150.0,0.00014898,2]
[394662931,1763838631975,-150.0,0.00014898,2]
[394662932,1763838631985,-466.7998894,0.0001491,2]
[394662933,1763838631995,-893.0,0.00014911,2]
[394662934,1763838632005,-300.0,0.00014912,2]
[394662935,1763838632014,-1200.0,0.00014912,2]
[394662936,1763838632024,-320.66646764,0.00014913,2]
[394662937,1763838632033,-500.0,0.00014913,2]
[394662938,1763838632042,-500.0,0.00014913,2]
[394662939,1763838632051,-500.0,0.00014913,2]
[394662940,1763838632061,-500.0,0.00014913,2]
[394662941,1763838632071,-500.0,0.00014913,2]
[394662942,1763838632080,-500.0,0.00014913,2]
[394662943,1763838632090,-500.0,0.00014913,2]
[394662944,1763838632099,-500.0,0.00014913,2]
[394662945,1763838632108,-500.0,0.00014913,2]
[394662946,1763838632117,-500.0,0.00014913,2]
[394662947,1763838632126,-500.0,0.00014913,2]
[394662948,1763838632136,-500.0,0.00014913,2]
[394662949,1763838632145,-500.0,0.00014913,2]
[394662950,1763838632155,-500.0,0.00014913,2]
[394662951,1763838632164,-500.0,0.00014913,2]
[394662952,1763838632173,-500.0,0.00014913,2]
[394662953,1763838632182,-362.57802359,0.00014913,2]
[394662955,1763838632192,-150.0,0.00014913,2]
[394662957,1763838632201,-150.0,0.00014913,2]
[394662959,1763838632210,-150.0,0.00014913,2]
[394662961,1763838632219,-150.0,0.00014913,2]
[394662963,1763838632228,-150.0,0.00014913,2]
[394662965,1763838632237,-186.01519004,0.00014913,2]
[394662967,1763838632247,-150.0,0.00014913,2]
[394662969,1763838632255,-150.0,0.00014913,2]
[394662971,1763838632265,-150.0,0.00014913,2]
[394662974,1763838632273,-150.0,0.00014913,2]
[394662979,1763838632286,-150.0,0.00014913,2]
[394662982,1763838632296,-163.30729811,0.00014913,2]
[394662985,1763838632305,-500.0,0.00014913,2]
[394662987,1763838632315,-500.0,0.00014913,2]
[394662989,1763838632326,-500.0,0.00014913,2]
[394662990,1763838632339,-500.0,0.00014913,2]
[394662991,1763838632349,-500.0,0.00014913,2]
[394662992,1763838632358,-500.0,0.00014913,2]
[394662993,1763838632367,-500.0,0.00014913,2]
[394662994,1763838632378,-500.0,0.00014913,2]
[394662995,1763838632387,-283.15,0.00014913,2]
[394662996,1763838632396,-500.0,0.00014913,2]
[394662997,1763838632407,-500.0,0.00014913,2]
[394662998,1763838632416,-500.0,0.00014913,2]
[394662999,1763838632425,-500.0,0.00014913,2]
[394663000,1763838632435,-500.0,0.00014913,2]
[394663001,1763838632443,-500.0,0.00014913,2]
[394663002,1763838632452,-500.0,0.00014913,2]
[394663003,1763838632462,-500.0,0.00014913,2]
[394663004,1763838632471,-500.0,0.00014913,2]
[394663005,1763838632482,-500.0,0.00014913,2]
[394663006,1763838632491,-500.0,0.00014913,2]
[394663007,1763838632501,-525.01594748,0.00014913,2]
[394663008,1763838632509,-67217.51127107,0.00014914,2]
[394663009,1763838632521,-1378.03378146,0.00014914,2]
[394663010,1763838632536,-3164.64380011,0.00014914,2]
[394663011,1763838632547,-3304.16149517,0.00014914,2]
[394663012,1763838632559,-5378.53161582,0.00014914,2]
[394663013,1763838632570,-269.99999994,0.00014914,2]
[394663014,1763838632582,-1530.42649643,0.00014914,2]
[394663015,1763838632593,-328.4750411,0.00014914,2]
[394663016,1763838632603,-842.66037514,0.00014914,2]
[394663017,1763838632620,-138166.38586498,0.00014914,2]
[394663018,1763838632631,-4967.05570746,0.00014914,2]
[394663019,1763838637924,-1031.65750244,0.00014914,2]
[394663020,1763838637936,-297746.05679866,0.00014914,2]
[394663021,1763838637977,-138184.44362359,0.00014914,2]
[394663022,1763838638033,-546.57321704,0.00014914,2]
[394663023,1763838638044,-1580.29999603,0.00014914,2]
[394663024,1763838638087,-692.42360236,0.00014914,2]
[394663135,1763838640043,-16007.68975075,0.00014914,2]
[394663136,1763838640058,-2185.54206641,0.00014914,2]
[394663137,1763838640072,-604.0,0.00014914,2]
[394663138,1763838640083,-1901.13575516,0.00014914,2]
[394663139,1763838640095,-555.77499033,0.00014914,2]
[394663140,1763838640202,-342.108,0.00014914,2]
[394663141,1763838640255,-716.37,0.00014914,2]
[394663148,1763838643716,-36271.47007482,0.00014914,2]
[394663149,1763838643728,-563.8722431,0.00014914,2]
[394663150,1763838643740,-673.3310658,0.00014914,2]
[394663151,1763838644608,-799.77282,0.00014914,2]
[394663152,1763838644619,-33049.59304483,0.00014914,2]
[394663153,1763838644630,-1000.0,0.00014914,2]
[394663154,1763838644639,-372.6113,0.00014914,2]
[394663155,1763838644649,-1000.0,0.00014914,2]
[394663156,1763838644659,-270.03104,0.0001501,2]
[394663157,1763838644668,-150.0,0.00015013,2]
[394663158,1763838644678,-422.28,0.00015013,2]
[394663159,1763838644687,-768.05,0.00015013,2]
[394663160,1763838644698,-499.99,0.00015013,2]
[394663161,1763838644707,-2379.03,0.00015013,2]
[394663162,1763838644717,-38451.89,0.00015013,2]
[394663164,1763838644726,-150.99,0.00015013,2]
[394663166,1763838644736,-999.99,0.00015013,2]
[394663167,1763838644746,-9999.99,0.00015013,2]
[394663168,1763838644755,-8447.13,0.00015013,2]
[394663169,1763838644764,-500.0,0.00015013,2]
[394663170,1763838644774,-1505.2706386,0.00015014,2]
[394663171,1763838644784,-51452.324278,0.00015014,2]
[394663172,1763838644794,-4187.1610695,0.00015014,2]
[394663173,1763838644804,-28757.1161497,0.00015014,2]
[394663174,1763838644813,-452.5898,0.00015014,2]
[394663175,1763838644823,-283.582193,0.00015014,2]
[394663176,1763838644832,-283.582193,0.00015014,2]
[394663177,1763838644842,-283.582193,0.00015014,2]
[394663178,1763838644858,-283.582193,0.00015014,2]
[394663179,1763838644875,-2129.85014858,0.00015045,2]
[394663180,1763838644884,-2129.85014858,0.00015045,2]
[394663181,1763838644894,-151.0,0.00015068,2]
[394663182,1763838644904,-1489.44,0.00015136,2]
[394663183,1763838644914,-242.14872538,0.00015151,2]
[394663184,1763838644923,-150.0,0.00015151,2]
[394663185,1763838644932,-150.0,0.00015151,2]
[394663186,1763838644942,-271.26495455,0.00015151,2]
[394663187,1763838644951,-150.0,0.00015151,2]
[394663188,1763838644960,-172.0,0.00015151,2]
[394663189,1763838644970,-150.0,0.00015151,2]
[394663190,1763838644979,-150.0,0.00015151,2]
[394663191,1763838644988,-150.0,0.00015151,2]
[394663192,1763838644998,-150.0,0.00015151,2]
[394663193,1763838645007,-4843.08851607,0.00015164,2]
[394663194,1763838645017,-12076.05408035,0.00015164,2]
[394663195,1763838645026,-283.15,0.00015187,2]
[394663196,1763838645036,-500.0,0.00015204,2]
[394663197,1763838645045,-500.0,0.00015204,2]
[394663198,1763838645055,-2583.9423704,0.00015205,2]
[394663199,1763838645068,-457.49703547,0.00015205,2]
[394663200,1763838645080,-482.7097,0.00015205,2]
[394663203,1763838645965,1000.0,0.00014814,2]
[394663204,1763838646092,-765.50949235,0.00015205,2]
[394663205,1763838646103,-894.05989,0.00015205,2]
[394663206,1763838646146,-978.65871471,0.00015205,2]
[394663207,1763838646256,-321.21063389,0.00015205,2]
[394663208,1763838646309,-455.0,0.00015205,2]
[394663209,1763838646320,-1020.3,0.00015205,2]
[394663210,1763838646418,-34039.09048354,0.00015205,2]
[394663211,1763838646429,-1116.0,0.00015205,2]
[394663212,1763838646440,-1866.93356883,0.00015205,2]
[394663213,1763838646475,-67867.56012182,0.00015205,2]
[394663215,1763838664638,477.57633402,0.00014814,2]
[394663216,1763838664659,2022.42366598,0.00014814,2]
[394663217,1763838773184,3895.6822,0.00014814,2]
[394663218,1763838794305,168.72,0.00012215,2]
[394663219,1763838801056,760000.0,0.00014814,2]
[394663220,1763838815863,1000.0,0.00014814,2]
[394663222,1763838876261,333.57,0.00019178,30]
[394663223,1763839008167,151.00481372,0.00014813,2]
[394663224,1763839013913,166.66,0.00014566,2]
[394663225,1763839112546,203.447452,0.00014798,2]
[394663227,1763839293945,637.622,0.000147,2]
[394663228,1763839356887,40189.72,0.00014668,2]
[394663229,1763839376684,-223.1889357,0.0001485,2]
[394663230,1763839376712,-166.66,0.00014872,2]
[394663231,1763839376739,-343.94117116,0.00014889,2]
[394663232,1763839389024,-17594.90259184,0.000149,2]
[394663233,1763839389054,-1000.0,0.000149,2]
[394663234,1763839389082,-223.1889357,0.000149,2]
[394663235,1763839389112,-1617.56781245,0.000149,2]
[394663246,1763839428215,280.5422,0.000149,2]
[394663250,1763839444283,1424.85,7.569e-05,2]
[394663251,1763839444486,1424.85,7.968e-05,2]
[394663253,1763839444893,1424.85,8.366e-05,2]
[394663254,1763839445105,1424.85,8.765e-05,2]
[394663255,1763839445314,1424.85,9.163e-05,2]
[394663256,1763839445510,1424.85,9.561e-05,2]
[394663257,1763839445716,0.90835315,9.96e-05,2]
[394663258,1763839445739,1423.94164685,9.96e-05,2]
[394663259,1763839445917,1424.85,0.00010358,2]
[394663260,1763839446126,1424.85,0.00010756,2]
[394663261,1763839446325,1424.85,0.00011155,2]
[394663262,1763839446540,1424.85,0.00011553,2]
[394663263,1763839446745,1424.85,0.00011952,2]
[394663264,1763839446956,1424.85,0.0001235,2]
[394663265,1763839447141,1424.85,0.00012748,2]
[394663267,1763839447671,1424.85,0.00013147,2]
[394663268,1763839447757,1424.85,0.00013545,2]
[394663269,1763839447971,1424.85,0.00013944,2]
[394663270,1763839448182,1424.85,0.00014342,2]
[394663271,1763839448376,1424.85,0.0001474,2]
[394663272,1763839448425,1063.641067,7.945e-05,2]
[394663273,1763839508433,150.0,0.000144,2]
[394663274,1763839510454,4203.158933,0.00010756,2]
[394663275,1763839515159,150.0,0.000144,2]
[394663276,1763839515322,150.0,0.000144,2]
[394663277,1763839515440,150.0,0.000144,2]
[394663278,1763839520022,2998.71092819,9e-05,2]
[394663279,1763839527614,150.0,0.000144,2]
[394663280,1763839558459,759.152318,0.00014824,2]
[394663281,1763839560143,23430.24920254,8e-05,2]
[394663282,1763839564194,8074.9036558,0.00011,2]
[394663291,1763839632761,5309.78963678,0.0001305,2]
[394663294,1763839664451,4397.34382605,0.00013,2]
[394663298,1763839684786,2576.80622992,0.0001439,2]
[394663299,1763839687810,635.66047941,0.000135,2]
[394663302,1763839696489,389.08616465,7.888e-05,2]
[394663304,1763839702742,222.49656315,0.0001,2]
[394663307,1763839708762,266.54130225,0.000107,2]
[394663309,1763839715793,3292.49462512,0.0001,2]
[394663356,1763839832203,-300.0,0.00014899,2]
[394663357,1763839832215,-69.39188292,0.00014899,2]
[394663358,1763839832226,-230.60811708,0.00014899,2]
[394663359,1763839832235,-150.0,0.00014899,2]
[394663360,1763839832244,-1200.0,0.00014899,2]
[394663361,1763839832253,-1000.0,0.000149,2]
[394663362,1763839832263,-15835.41233271,0.000149,2]
[394663363,1763839832272,-155.45844064,0.000149,2]
[394663364,1763839832281,-151.0,0.00014991,2]
[394663365,1763839832291,-151.0,0.00014991,2]
[394663366,1763839832300,-151.0,0.00014991,2]
[394663367,1763839832309,-151.0,0.00014991,2]
[394663368,1763839832317,-151.0,0.00014991,2]
[394663369,1763839832326,-151.0,0.00014991,2]
[394663370,1763839832335,-151.0,0.00014991,2]
[394663371,1763839832344,-151.0,0.00014991,2]
[394663372,1763839832353,-151.0,0.00014991,2]
[394663373,1763839832362,-151.0,0.00014991,2]
[394663374,1763839832370,-151.0,0.00014991,2]
[394663375,1763839832379,-151.0,0.00014991,2]
[394663376,1763839832388,-151.0,0.00014991,2]
[394663377,1763839832398,-151.0,0.00014991,2]
[394663378,1763839832407,-151.0,0.00014991,2]
[394663379,1763839832416,-151.0,0.00014991,2]
[394663380,1763839832425,-151.0,0.00014991,2]
[394663381,1763839832435,-151.0,0.00014991,2]
[394663382,1763839832444,-151.0,0.00014991,2]
[394663383,1763839832453,-151.0,0.00014991,2]
[394663384,1763839832462,-568.46820028,0.00014999,2]
[394663385,1763839832471,-350.91379945,0.00014999,2]
[394663386,1763839832480,-500.0,0.00014999,2]
[394663387,1763839832489,-500.0,0.00014999,2]
[394663388,1763839832498,-194.67716037,0.00014999,2]
[394663390,1763839832508,-500.0,0.00014999,2]
[394663391,1763839832517,-429.17533595,0.00014999,2]
[394663393,1763839832526,-150.0,0.00014999,2]
[394663396,1763839832535,-500.0,0.00014999,2]
[394663399,1763839832544,-500.0,0.00014999,2]
[394663401,1763839832554,-197.81476086,0.00014999,2]
[394663404,1763839832563,-500.0,0.00014999,2]
[394663407,1763839832572,-500.0,0.00014999,2]
[394663409,1763839832581,-500.0,0.00014999,2]
[394663412,1763839832599,-500.0,0.00014999,2]
[394663414,1763839832609,-474.00477995,0.00014999,2]
[394663416,1763839832618,-55442.12025151,0.00015,2]
[394663418,1763839832632,-3799.99999984,0.00015,2]
[394663421,1763839832647,-2596.0935,0.00015,2]
[394663422,1763839832803,-2260.98423398,0.00015,2]
[394663423,1763839832819,-1305.0,0.00015,2]
[394663424,1763839832832,-907.39497235,0.00015,2]
[394663425,1763839832843,-397.84647269,0.00015,2]
[394663426,1763839832855,-379843.57311068,0.00015,2]
[394663427,1763839832866,-75287.91998051,0.00015,2]
[394663428,1763839832877,-60787.72617844,0.00015,2]
[394663429,1763839832888,-350.01063166,0.00015,2]
[394663430,1763839832899,-226.2949,0.0001505,2]
[394663431,1763839832909,-1500.0,0.0001505,2]
[394663432,1763839832921,-721.12765535,0.0001505,2]
[394663433,1763839832931,-1500.0,0.0001505,2]
[394663434,1763839832940,-1500.0,0.0001505,2]
[394663435,1763839832949,-1500.0,0.0001505,2]
[394663436,1763839832959,-869.75642179,0.0001505,2]
[394663437,1763839832970,-5000.0,0.0001505,2]
[394663438,1763839832980,-500.0,0.0001505,2]
[394663439,1763839832990,-500.0,0.0001505,2]
[394663440,1763839833001,-500.0,0.00015073,2]
[394663441,1763839833010,-500.0,0.00015073,2]
[394663442,1763839833020,-565.40297735,0.00015073,2]
[394663443,1763839833030,-500.96249559,0.00015073,2]
[394663444,1763839833039,-501.44245862,0.00015073,2]
[394663445,1763839833048,-315.20269062,0.00015073,2]
[394663446,1763839833059,-500.0,0.00015073,2]
[394663447,1763839833068,-500.0,0.00015073,2]
[394663448,1763839833078,-500.0,0.00015073,2]
[394663449,1763839833087,-500.0,0.00015073,2]
[394663450,1763839833096,-420.27752062,0.00015073,2]
[394663451,1763839833106,-500.0,0.00015073,2]
[394663452,1763839833115,-500.0,0.00015073,2]
[394663453,1763839833124,-500.97628186,0.00015073,2]
[394663454,1763839833133,-500.0,0.00015073,2]
[394663455,1763839833143,-215.46516756,0.00015073,2]
[394663456,1763839833152,-500.0,0.00015082,2]
[394663457,1763839833161,-500.0,0.00015083,2]
[394663458,1763839833174,-200.0,0.00015083,2]
[394663459,1763839833184,-150.99,0.00015083,2]
[394663460,1763839833193,-6717.74,0.00015083,2]
[394663461,1763839833203,-283.16,0.00015091,2]
[394663462,1763839833212,-229.58,0.00015099,2]
[394663463,1763839833222,-343.55876813,0.000151,2]
[394663464,1763839833234,-78286.12769012,0.000151,2]
[394663466,1763839838208,-500.0,0.00015073,2]
[394663467,1763839838218,-9500.0,0.000151,2]
[394663468,1763839838264,-866.41256,0.000151,2]
[394663484,1763839843855,-3238.92080641,0.000151,2]
[394663485,1763839843911,-10584.98538417,0.000151,2]
[394663487,1763839844444,-940.372799,0.000151,2]
[394663488,1763839844499,-301.26034075,0.000151,2]
[394663496,1763839846271,-93411.64053842,0.000151,2]
[394663497,1763839846280,-25137.216517,0.000151,2]
[394663498,1763839846290,-11031.5309024,0.000151,2]
[394663499,1763839846299,-1424.85,0.00015139,2]
[394663500,1763839846308,-166.66,0.00015179,2]
[394663501,1763839846318,-226.2949,0.0001519,2]
[394663502,1763839846328,-150.0,0.000152,2]
[394663503,1763839846338,-150.0,0.000152,2]
[394663504,1763839846347,-155.34853818,0.00015205,2]
[394663505,1763839846357,-15835.41233265,0.00015233,2]
[394663506,1763839846368,-1292.2,0.00015269,2]
[394663507,1763839846377,-860.37,0.000153,2]
[394663508,1763839846387,-160.73,0.00015342,2]
[394663509,1763839846398,-283.16,0.00015365,2]
[394663510,1763839846408,-226.2949,0.0001544,2]
[394663511,1763839846422,-166.66,0.00015486,2]
[394663512,1763839846432,-15835.41233265,0.00015567,2]
[394663513,1763839846441,-1000.0,0.00015621,2]
[394663514,1763839846451,-294.42607375,0.00015621,2]
[394663515,1763839846460,-500.0,0.00015621,2]
[394663516,1763839846470,-966.96816163,0.00015621,2]
[394663517,1763839846479,-406.97735465,0.00015621,2]
[394663518,1763839846489,-1000.0,0.00015621,2]
[394663519,1763839846499,-500.0,0.00015621,2]
[394663520,1763839846508,-226.865755,0.00015621,2]
[394663521,1763839846518,-226.865755,0.00015621,2]
[394663522,1763839846527,-226.865755,0.00015621,2]
[394663523,1763839846536,-226.865755,0.00015621,2]
[394663524,1763839846546,-283.16,0.00015639,2]
[394663525,1763839846555,-226.2949,0.0001569,2]
[394663526,1763839846564,-151.0,0.0001579,2]
[394663527,1763839846574,-151.0,0.0001579,2]
[394663528,1763839846583,-166.66,0.00015792,2]
[394663529,1763839846593,-15835.41233265,0.000159,2]
[394663531,1763839846603,-795.46358891,0.000159,2]
[394663533,1763839846612,-795.46358891,0.000159,2]
[394663534,1763839846622,-226.2949,0.0001594,2]
[394663535,1763839846635,-263.09,0.00015945,2]
[394663536,1763839846646,-12089.25178972,0.00015979,2]
[394663537,1763839846655,-150.0,0.00016,2]
[394663538,1763839846664,-150.0,0.00016,2]
[394663539,1763839846675,-150.0,0.00016,2]
[394663540,1763839846686,-150.0,0.00016,2]
[394663541,1763839846695,-10244.14719973,0.00016,2]
[394663542,1763839846704,-255.0,0.00016031,2]
[394663543,1763839846714,-166.66,0.00016099,2]
[394663544,1763839846727,-168.0,0.00016145,2]
[394663545,1763839846737,-1431.19,0.00016162,2]
[394663546,1763839846747,-542.09709135,0.00016168,2]
[394663547,1763839846756,-168.0,0.0001617,2]
[394663548,1763839846993,-2282.0,0.00016185,2]
[394663549,1763839847003,-183.01,0.00016186,2]
[394663550,1763839847012,-226.2949,0.0001619,2]
[394663551,1763839847021,-3862.64400433,0.000162,2]
[394663552,1763839847031,-5000.00114039,0.000162,5]
[394663553,1763839847040,-226.865755,0.00016233,2]
[394663554,1763839847049,-226.865755,0.00016233,2]
[394663555,1763839847058,-226.865755,0.00016233,2]
[394663556,1763839847067,-226.865755,0.00016233,2]
[394663557,1763839847076,-3874.47081285,0.00016233,2]
[394663558,1763839847085,-15835.41233265,0.00016233,2]
[394663559,1763839847094,-160.73,0.00016301,2]
[394663560,1763839847104,-420.0,0.00016308,2]
[394663561,1763839847113,-420.0,0.00016308,2]
[394663562,1763839847123,-168.0,0.00016351,2]
[394663563,1763839847132,-250.0,0.00016389,2]
[394663564,1763839847141,-250.0,0.00016389,2]
[394663565,1763839847150,-1680.0,0.00016389,2]
[394663566,1763839847159,-567.06270597,0.00016411,2]
[394663567,1763839847168,-260.31402,0.00016438,2]
[394663568,1763839847177,-280.39922151,0.00016438,2]
[394663569,1763839847186,-1875.0,0.00016438,2]
[394663570,1763839847195,-500.0,0.00016438,2]
[394663571,1763839847204,-151.0,0.00016438,2]
[394663572,1763839847213,-165.685436,0.00016438,2]
[394663573,1763839847223,-500.0,0.00016438,2]
[394663574,1763839847233,-500.0,0.00016438,2]
[394663575,1763839847242,-989.96,0.00016438,2]
[394663576,1763839847251,-500.0,0.00016438,2]
[394663577,1763839847261,-500.0,0.00016438,2]
[394663578,1763839847270,-500.0,0.00016438,2]
[394663579,1763839847279,-340.38466045,0.00016438,2]
[394663580,1763839847289,-151.0,0.00016438,2]
[394663581,1763839847298,-151.0,0.00016438,2]
[394663582,1763839847307,-151.0,0.00016438,2]
[394663583,1763839847316,-226.953959,0.00016438,2]
[394663584,1763839847326,-2902.98,0.00016438,2]
[394663585,1763839847346,-227.386626,0.00016438,2]
[394663586,1763839847356,-151.0,0.00016438,2]
[394663587,1763839847365,-151.0,0.00016438,2]
[394663588,1763839847376,-151.0,0.00016438,2]
[394663589,1763839847386,-218.356464,0.00016438,2]
[394663590,1763839847397,-218.356464,0.00016438,2]
[394663591,1763839847407,-218.356464,0.00016438,2]
[394663592,1763839847417,-218.356464,0.00016438,2]
[394663593,1763839847427,-151.0,0.00016438,2]
[394663594,1763839847437,-151.0,0.00016438,2]
[394663595,1763839847447,-151.0,0.00016438,2]
[394663596,1763839847457,-151.0,0.00016438,2]
[394663597,1763839847466,-181.776392,0.00016438,2]
[394663598,1763839847475,-163.74,0.0001644,2]
[394663599,1763839847487,-167.37962358,0.00016472,2]
[394663600,1763839847496,-168.0,0.00016492,2]
[394663601,1763839847507,-168.0,0.0001652,2]
[394663602,1763839847516,-1000.0,0.00016526,2]
[394663603,1763839847527,-3874.47081285,0.00016567,2]
[394663604,1763839847536,-15835.41233265,0.00016567,2]
[394663605,1763839847546,-151.0,0.00016567,2]
[394663606,1763839847555,-218.356464,0.00016567,2]
[394663607,1763839847565,-218.356464,0.00016567,2]